bitfinex/quotes_BTCUSD_20251120
["timestamp","ask_amount","ask_price","bid_price","bid_amount"]
[1763650780387,0.21942634,91147.0,91144.0,0.01097164]
[1763650780558,0.02161625,91146.0,91144.0,0.2194326]
[1763650781007,0.2470231,91149.0,91144.0,0.2194326]
[1763650781008,0.001,91147.0,91146.0,0.21942817]
[1763650781472,0.03480912,91165.0,91154.0,0.21940891]
[1763650781670,0.01534,91155.0,91154.0,0.21940891]
[1763650782597,0.01534,91155.0,91152.0,0.01644295]
[1763650782808,0.21940891,91154.0,91152.0,0.01644295]
[1763650783050,0.0164,91153.0,91152.0,0.2468268]
[1763650783256,0.0164,91153.0,91152.0,0.23585667]
[1763650783470,0.0164,91153.0,91152.0,0.19129962]
[1763650783854,0.00376,91155.0,91154.0,0.21940891]
[1763650784257,0.01179,91164.0,91163.0,0.21938725]
[1763650784608,0.01179,91164.0,91161.0,0.0109696]
[1763650784609,0.01555,91164.0,91162.0,0.21938965]
[1763650784737,0.01555,91164.0,91163.0,0.21938725]
[1763650785361,0.01655,91164.0,91163.0,0.21938725]
[1763650785769,0.03295,91164.0,91163.0,0.21938725]
[1763650785994,0.01655,91164.0,91163.0,0.21938725]
[1763650786169,0.00476,91164.0,91163.0,0.21938725]
[1763650786773,0.00576,91164.0,91163.0,0.21938725]
[1763650786982,0.00476,91164.0,91163.0,0.21938725]
[1763650787191,0.0117,91171.0,91170.0,0.2193704]
[1763650787399,0.02384,91189.0,91186.0,0.21933155]
[1763650787677,0.00376,91187.0,91185.0,0.23030062]
[1763650788072,0.05120659,91186.0,91179.0,0.01096743]
[1763650788307,0.21933996,91183.0,91182.0,0.01644295]
[1763650788727,0.0117,91183.0,91182.0,0.01644295]
[1763650788930,0.03911739,91183.0,91182.0,0.01644295]
[1763650789166,0.02741739,91183.0,91182.0,0.01644295]
[1763650789375,0.00376,91187.0,91185.0,0.21933432]
[1763650790471,0.03117618,91187.0,91184.0,0.23030109]
[1763650790685,0.03117618,91187.0,91185.0,0.18333405]
[1763650791094,0.03117618,91187.0,91182.0,0.01644295]
[1763650791319,0.03117618,91187.0,91185.0,0.21933313]
[1763650791560,0.03117618,91187.0,91182.0,0.01644295]
[1763650791561,0.0281,91183.0,91182.0,0.01644295]
[1763650791776,0.24743913,91183.0,91182.0,0.01644295]
[1763650791983,0.0281,91183.0,91182.0,0.01644295]
[1763650792464,0.03911739,91183.0,91182.0,0.01644295]
[1763650792900,0.05551739,91183.0,91173.0,0.21936318]
[1763650793118,0.05551739,91183.0,91182.0,0.01644295]
[1763650793119,0.28229652,91183.0,91182.0,0.01644295]
[1763650793340,0.02384,91182.0,91175.0,0.01096791]
[1763650793539,0.02384,91182.0,91180.0,0.01096731]
[1763650793757,0.02660798,91181.0,91172.0,0.01096827]
[1763650793962,0.21935356,91177.0,91174.0,0.01096803]
[1763650794201,0.03480707,91182.0,91174.0,0.2193601]
[1763650794202,0.00376,91176.0,91174.0,0.2193601]
[1763650794420,0.00376,91176.0,91175.0,0.21935837]
[1763650794638,0.00376,91176.0,91173.0,0.01096815]
[1763650794855,0.21935837,91175.0,91172.0,0.01096827]
[1763650795068,0.0164,91173.0,91157.0,0.323]
[1763650795276,0.0164,91173.0,91170.0,0.01096852]
[1763650795455,0.0164,91173.0,91171.0,0.219368]
[1763650795697,0.0164,91171.0,91164.0,0.01096924]
[1763650795909,0.0164,91169.0,91161.0,0.0109696]
[1763650796089,0.0164,91169.0,91168.0,0.23581816]
[1763650796579,0.0676616,91169.0,91166.0,0.01644295]
[1763650796790,0.0164,91167.0,91166.0,0.01644295]
[1763650797658,0.04024,91167.0,91166.0,0.23582298]
[1763650798072,0.0164,91167.0,91166.0,0.23582298]
[1763650798281,0.0164,91167.0,91166.0,0.20882298]
[1763650798490,0.0117,91169.0,91168.0,0.21937521]
[1763650799127,0.05194,91169.0,91167.0,0.01644295]
[1763650799356,0.05194,91169.0,91167.0,0.23581863]
[1763650799357,0.0117,91169.0,91167.0,0.23581863]
[1763650799573,0.02384,91184.0,91177.0,0.01096767]
[1763650799786,0.03117769,91182.0,91177.0,0.01096767]
[1763650800000,0.04214476,91182.0,91174.0,0.01096803]
[1763650800242,0.00376,91182.0,91179.0,0.01096743]
[1763650800469,0.00376,91182.0,91175.0,0.01096791]
[1763650800470,0.0117,91197.0,91191.0,0.01096599]
[1763650800688,0.00376,91196.0,91192.0,0.21931562]
[1763650800904,0.00376,91196.0,91193.0,0.2302804]
[1763650801133,0.00376,91196.0,91190.0,0.01096611]
[1763650801134,0.0164,91193.0,91190.0,0.01096611]
[1763650801343,0.0164,91191.0,91182.0,0.01644295]
[1763650801554,0.0164,91191.0,91187.0,0.01096647]
[1763650801555,0.02255663,91190.0,91187.0,0.01096647]
[1763650801761,0.02255663,91190.0,91186.0,0.23029766]
[1763650801977,0.0164,91187.0,91184.0,0.23030205]
[1763650802193,0.02741408,91194.0,91187.0,0.01096647]
[1763650802407,0.00376,91196.0,91190.0,0.23028363]
[1763650802620,0.03441,91215.0,91204.0,0.21928862]
[1763650802802,0.03441,91215.0,91204.0,0.23573157]
[1763650802803,0.01546,91205.0,91204.0,0.23573157]
[1763650803180,0.02003,91205.0,91201.0,0.01644295]
[1763650803357,0.04274,91205.0,91202.0,0.01096467]
[1763650803615,0.01627,91202.0,91201.0,0.01644295]
[1763650803837,0.01627,91202.0,91173.0,0.33197]
[1763650803838,0.0833526,91202.0,91173.0,0.33197]
[1763650804040,0.01146,91190.0,91187.0,0.23029322]
[1763650804241,0.00376,91189.0,91187.0,0.23029322]
[1763650804469,0.00376,91189.0,91188.0,0.01644295]
[1763650805201,0.00376,91189.0,91188.0,0.23577005]
[1763650805534,0.01096479,91201.0,91188.0,0.23577005]
[1763650805535,0.01146,91210.0,91194.0,0.01096563]
[1763650805738,0.00376,91207.0,91205.0,0.21928518]
[1763650806161,0.00376,91207.0,91206.0,0.22825381]
[1763650806367,0.0117,91231.0,91225.0,0.0109619]
[1763650806573,0.21924141,91224.0,91214.0,0.02678322]
[1763650806781,0.21924055,91224.0,91223.0,0.01644295]
[1763650806990,0.0147213,91230.0,91224.0,0.01096202]
[1763650806991,0.00376,91230.0,91224.0,0.01096202]
[1763650807198,0.00376,91230.0,91228.0,0.21923093]
[1763650807405,0.01146,91250.0,91243.0,0.01095974]
[1763650807858,0.01146,91250.0,91234.0,0.01096082]
[1763650807859,0.2191968,91243.0,91241.0,0.01644295]
[1763650808060,0.00376,91248.0,91241.0,0.01644295]
[1763650808061,0.00376,91248.0,91241.0,0.02740293]
[1763650808191,0.00376,91248.0,91243.0,0.01095974]
[1763650808397,0.00376,91248.0,91246.0,0.21918687]
[1763650808601,0.00376,91248.0,91244.0,0.00897]
[1763650808799,0.00376,91248.0,91245.0,0.23014788]
[1763650809001,0.00376,91248.0,91245.0,0.0109595]
[1763650809617,0.00376,91248.0,91247.0,0.21918528]
[1763650809839,0.00376,91248.0,91244.0,0.00897]
[1763650810001,0.21918905,91246.0,91244.0,0.00897]
[1763650810224,0.00376,91248.0,91246.0,0.21918661]
[1763650810432,0.00376,91248.0,91245.0,0.23014832]
[1763650810636,0.00376,91248.0,91245.0,0.0109595]
[1763650810878,0.00376,91248.0,91245.0,0.23014838]
[1763650811170,0.00376,91248.0,91244.0,0.01992962]
[1763650811333,0.02271,91247.0,91241.0,0.01644295]
[1763650811555,0.0109601,91240.0,91223.0,0.01644295]
[1763650811747,0.23547752,91238.0,91233.0,0.01096094]
[1763650811975,0.02618976,91237.0,91233.0,0.21921755]
[1763650812272,0.01522,91237.0,91235.0,0.21921348]
[1763650812473,0.21919331,91244.0,91238.0,0.01096034]
[1763650812622,0.21920025,91241.0,91237.0,0.01644295]
[1763650812802,0.21920545,91239.0,91237.0,0.01644295]
[1763650813005,0.21920545,91239.0,91224.0,0.01096202]
[1763650813006,0.0109619,91225.0,91208.0,0.01096395]
[1763650813206,0.01146,91215.0,91202.0,0.00941295]
[1763650813436,0.00376,91224.0,91216.0,0.01096298]
[1763650813654,0.00376,91224.0,91213.0,0.23022889]
[1763650813655,0.21925285,91219.0,91213.0,0.23022889]
[1763650813848,0.03836961,91218.0,91204.0,0.23025065]
[1763650814055,0.0109631,91215.0,91201.0,0.01096479]
[1763650814324,0.21927895,91209.0,91202.0,0.02037762]
[1763650814522,0.01096346,91212.0,91202.0,0.02037762]
[1763650814523,0.02740987,91208.0,91202.0,0.00941295]
[1763650814724,0.00376,91210.0,91209.0,0.2192766]
[1763650814941,0.2302581,91202.0,91182.0,0.2193399]
[1763650815206,0.02773,91203.0,91200.0,0.01096491]
[1763650815207,0.01146,91203.0,91200.0,0.01096491]
[1763650815422,0.00376,91210.0,91208.0,0.21927824]
[1763650815641,0.00376,91210.0,91204.0,0.01096443]
[1763650815851,0.03116927,91210.0,91205.0,0.01096431]
[1763650816060,0.03116927,91210.0,91208.0,0.21927788]
[1763650816300,0.22303505,91210.0,91206.0,0.01096419]
[1763650816511,0.2419866,91209.0,91203.0,0.23025464]
[1763650816724,0.02271,91209.0,91207.0,0.21928051]
[1763650816938,0.02271,91209.0,91206.0,0.01096419]
[1763650817151,0.00376,91210.0,91209.0,0.2192766]
[1763650817366,0.02647,91210.0,91209.0,0.2192766]
[1763650817575,0.04274,91210.0,91209.0,0.2192766]
[1763650817804,0.00376,91210.0,91209.0,0.24613784]
[1763650818542,0.02003,91210.0,91208.0,0.21927901]
[1763650818995,0.02003,91210.0,91192.0,0.43862715]
[1763650818996,0.01096467,91202.0,91189.0,0.01096623]
[1763650819166,0.01096503,91199.0,91192.0,0.01096587]
[1763650819397,0.21931446,91194.0,91189.0,0.33396623]
[1763650819602,0.00376,91199.0,91197.0,0.21930511]
[1763650819775,0.00376,91199.0,91194.0,0.01096563]
[1763650820008,0.00376,91199.0,91170.0,0.56339849]
[1763650820009,0.21932272,91190.0,91173.0,0.01096815]
[1763650820207,0.01096707,91182.0,91176.0,0.01096779]
[1763650820415,0.01096755,91178.0,91169.0,0.00297]
[1763650820618,0.01146,91177.0,91172.0,0.01096827]
[1763650820819,0.01146,91177.0,91175.0,0.21935723]
[1763650821022,0.01096815,91173.0,91167.0,0.01644295]
[1763650821169,0.01146,91180.0,91178.0,0.23031724]
[1763650821376,0.00376,91181.0,91179.0,0.21934692]
[1763650821585,0.22310433,91181.0,91177.0,0.21935203]
[1763650821782,0.01627,91175.0,91161.0,0.0109696]
[1763650821981,0.01096743,91179.0,91172.0,0.01644295]
[1763650821982,0.01627,91174.0,91172.0,0.01644295]
[1763650822382,0.03898,91173.0,91172.0,0.23580808]
[1763650823423,0.00376,91181.0,91179.0,0.21934825]
[1763650823719,0.01096731,91180.0,91176.0,0.01096779]
[1763650823932,0.01627,91177.0,91175.0,0.01096791]
[1763650824081,0.21934875,91179.0,91176.0,0.01096779]
[1763650824266,0.00376,91181.0,91179.0,0.21934722]
[1763650825098,0.03898,91180.0,91175.0,0.01096791]
[1763650825301,0.01627,91180.0,91178.0,0.21935024]
[1763650825743,0.01627,91180.0,91175.0,0.01096791]
[1763650825744,0.01146,91199.0,91192.0,0.01096587]
[1763650825954,0.01146,91199.0,91198.0,0.01644295]
[1763650826160,0.01096695,91183.0,91171.0,0.0109684]
[1763650826399,0.01096996,91158.0,91148.0,0.07833188]
[1763650826625,0.01627,91156.0,91150.0,0.01097092]
[1763650826822,0.01627,91156.0,91145.0,0.00298]
[1763650827022,0.03898,91156.0,91140.0,0.00298]
[1763650827220,0.03898,91156.0,91140.0,0.01395213]
[1763650827469,0.03898,91156.0,91151.0,0.0109708]
[1763650827677,0.01146,91160.0,91157.0,0.01097008]
[1763650827890,0.23085504,91160.0,91156.0,0.0109702]
[1763650828098,0.23085504,91160.0,91152.0,0.24682707]
[1763650828099,0.01146,91160.0,91152.0,0.01644295]
[1763650828299,0.02271,91159.0,91152.0,0.02741363]
[1763650828506,0.02271,91159.0,91156.0,0.0109702]
[1763650828715,0.23037946,91155.0,91152.0,0.01644295]
[1763650828920,0.01627,91153.0,91140.0,0.01395213]
[1763650829131,0.01627,91153.0,91152.0,0.01644295]
[1763650829342,0.02271,91158.0,91152.0,0.02741363]
[1763650829546,0.01146,91160.0,91157.0,0.01097008]
[1763650829751,0.21939811,91159.0,91156.0,0.21940339]
[1763650829957,0.01146,91160.0,91152.0,0.01644295]
[1763650829958,0.01096996,91158.0,91152.0,0.01644295]
[1763650830162,0.2194104,91154.0,91152.0,0.01644295]
[1763650830371,0.2194128,91153.0,91150.0,0.21941816]
[1763650830593,0.0109702,91156.0,91137.0,0.01097249]
[1763650830798,0.01528,91149.0,91147.0,0.01097128]
[1763650830998,0.00376,91148.0,91139.0,0.01097225]
[1763650831207,0.21943057,91145.0,91135.0,0.01644295]
[1763650831413,0.0109714,91146.0,91137.0,0.01097249]
[1763650831414,0.01097189,91142.0,91137.0,0.01097249]
[1763650831672,0.21945023,91137.0,91135.0,0.01644295]
[1763650831865,0.21945023,91137.0,91121.0,0.01644295]
[1763650831866,0.01097297,91133.0,91118.0,0.01097477]
[1763650832041,0.01528,91135.0,91132.0,0.01097309]
[1763650832270,0.0383,91136.0,91133.0,0.23043047]
[1763650832476,0.0383,91136.0,91132.0,0.01097309]
[1763650832477,0.0231,91135.0,91132.0,0.01097309]
[1763650832686,0.01597,91134.0,91132.0,0.23043334]
[1763650832908,0.0231,91143.0,91140.0,0.01097213]
[1763650833116,0.62696098,91160.0,91150.0,0.23038878]
[1763650833117,0.00376,91153.0,91150.0,0.23038878]
[1763650833335,0.01097008,91157.0,91145.0,0.01644295]
[1763650833537,0.02242972,91160.0,91110.0,0.0004]
[1763650833538,0.01186,91132.0,91130.0,0.323]
[1763650833748,0.03159,91132.0,91118.0,0.01097477]
[1763650833951,0.21947392,91127.0,91123.0,0.01097417]
[1763650834175,0.01097369,91127.0,91110.0,0.21991384]
[1763650834383,0.01597,91123.0,91122.0,0.01097429]
[1763650834701,0.01597,91123.0,91122.0,0.00594382]
[1763650834903,0.01186,91132.0,91128.0,0.21946971]
[1763650835124,0.05210249,91146.0,91143.0,0.21943394]
[1763650835333,0.01597,91144.0,91126.0,0.01097381]
[1763650835546,0.01097369,91127.0,91122.0,0.01097429]
[1763650835765,0.00376,91126.0,91121.0,0.01644295]
[1763650835968,0.00376,91126.0,91124.0,0.2194804]
[1763650836414,0.21947203,91128.0,91125.0,0.21947795]
[1763650836626,0.01097453,91120.0,91098.0,0.00298]
[1763650836831,0.01097453,91120.0,91111.0,0.21951194]
[1763650836832,0.01597,91114.0,91111.0,0.21951194]
[1763650837043,0.01597,91114.0,91100.0,0.01395694]
[1763650837044,0.01597,91114.0,91102.0,0.21953396]
[1763650837264,0.03907,91114.0,91104.0,0.01097646]
[1763650837495,0.03907,91114.0,91113.0,1e-06]
[1763650837496,0.16422156,91114.0,91113.0,1e-06]
[1763650837711,0.0109773,91097.0,91090.0,0.0004]
[1763650837950,0.00376,91096.0,91094.0,0.01644295]
[1763650838181,0.00376,91096.0,91093.0,0.02742074]
[1763650838395,0.02783,91094.0,91093.0,0.01644295]
[1763650838601,0.00376,91096.0,91094.0,0.21955342]
[1763650839863,0.0231,91107.0,91106.0,0.2195245]
[1763650840079,0.0378361,91107.0,91102.0,0.0109767]
[1763650840313,0.02686,91107.0,91105.0,0.21952598]
[1763650840524,0.0231,91106.0,91105.0,0.21952605]
[1763650840765,0.01186,91111.0,91110.0,0.21951487]
[1763650840993,0.01597,91106.0,91105.0,0.01097634]
[1763650841431,0.03907,91106.0,91103.0,0.01097658]
[1763650841706,0.01597,91105.0,91104.0,0.21452775]
[1763650841918,0.01562,91111.0,91109.0,0.21951617]
[1763650842120,0.01186,91111.0,91109.0,0.21951617]
[1763650842331,0.01973,91110.0,91109.0,0.23045149]
[1763650842737,0.04283,91110.0,91109.0,0.01093532]
[1763650844701,0.04283,91110.0,91040.0,0.97339848]
[1763650844702,0.21953894,91101.0,91095.0,0.01097755]
[1763650844948,0.21952938,91104.0,91102.0,0.01093532]
[1763650845173,0.24262938,91104.0,91102.0,0.01093532]
[1763650845380,0.21952969,91105.0,91090.0,0.0004]
[1763650845381,0.05004658,91103.0,91090.0,0.0004]
[1763650845586,0.01597,91091.0,91090.0,0.0004]
[1763650845999,0.03907,91091.0,91090.0,0.0004]
[1763650847015,0.03907,91091.0,91090.0,0.01133532]
[1763650847920,0.09117249,91091.0,91090.0,0.01133532]
[1763650848353,0.09117249,91091.0,91090.0,0.00231035]
[1763650848657,0.49391487,91091.0,91090.0,3.5e-07]
[1763650848863,0.49491487,91091.0,91090.0,3.5e-07]
[1763650849281,0.49291487,91091.0,91090.0,3.5e-07]
[1763650849629,0.49391487,91091.0,91090.0,3.5e-07]
[1763650849825,0.09117249,91091.0,91090.0,3.5e-07]
[1763650850027,0.09493249,91091.0,91090.0,0.01093567]
[1763650850228,0.01697,91091.0,91090.0,0.01093567]
[1763650850478,0.24029065,91091.0,91090.0,0.01093567]
[1763650850679,0.26339065,91091.0,91090.0,0.01093567]
[1763650850995,0.26339065,91091.0,91090.0,3.5e-07]
[1763650851224,0.26339065,91091.0,91080.0,0.01133532]
[1763650851225,0.21958476,91081.0,91080.0,0.01133532]
[1763650851451,0.23555476,91081.0,91080.0,0.01133532]
[1763650851680,0.25565411,91081.0,91080.0,0.01133532]
[1763650852066,0.40139127,91081.0,91080.0,0.0004]
[1763650852656,0.3077566,91081.0,91080.0,0.0004]
[1763650852863,0.3087566,91081.0,91080.0,0.0004]
[1763650853109,0.3097566,91081.0,91080.0,0.0004]
[1763650853850,0.01186,91065.0,91062.0,0.23061033]
[1763650854053,0.02783,91065.0,91063.0,0.21962816]
[1763650854294,0.01186,91065.0,91063.0,0.21962671]
[1763650855073,0.00376,91066.0,91065.0,0.21962334]
[1763650855329,0.00376,91066.0,91065.0,0.23606629]
[1763650855726,0.01973,91066.0,91065.0,0.01644295]
[1763650855899,0.21962334,91065.0,91056.0,0.01098225]
[1763650856078,0.04283,91066.0,91060.0,0.21963533]
[1763650856284,0.21963312,91061.0,91058.0,0.01098201]
[1763650856537,0.0231,91065.0,91058.0,0.01098201]
[1763650856538,0.21962575,91064.0,91058.0,0.01098201]
[1763650856784,0.01597,91059.0,91058.0,0.24706518]
[1763650856968,0.00376,91066.0,91063.0,0.21962816]
[1763650857167,0.00376,91066.0,91064.0,0.21962479]
[1763650857366,0.0231,91065.0,91063.0,0.23060954]
[1763650857569,0.01597,91064.0,91063.0,0.23060954]
[1763650857978,0.00376,91066.0,91063.0,0.0109814]
[1763650858184,0.00376,91066.0,91063.0,0.23060955]
[1763650858386,0.00376,91066.0,91063.0,0.0109814]
[1763650858586,0.00376,91066.0,91063.0,0.23060952]
[1763650858764,0.00376,91066.0,91065.0,0.21962334]
[1763650859118,0.00376,91066.0,91063.0,0.23060952]
[1763650859119,0.00376,91066.0,91063.0,0.0109814]
[1763650859325,0.00376,91066.0,91063.0,0.23060931]
[1763650859534,0.00376,91066.0,91056.0,0.2196441]
[1763650859751,0.00376,91066.0,91024.0,0.07833188]
[1763650859752,0.01597,91063.0,91052.0,0.01098273]
[1763650859966,0.0231,91065.0,91058.0,0.24706478]
[1763650860177,0.01098116,91065.0,91060.0,0.01098177]
[1763650860383,0.00376,91066.0,91065.0,0.21962334]
[1763650860822,0.01973,91066.0,91056.0,0.01098225]
[1763650861044,0.01973,91066.0,91063.0,0.0109814]
[1763650861255,0.01597,91059.0,91058.0,0.22404634]
[1763650861686,0.01597,91059.0,91042.0,0.32951493]
[1763650861687,0.2196554,91052.0,91049.0,0.01098309]
[1763650861909,0.2196554,91052.0,91047.0,0.01098333]
[1763650861910,0.21966194,91049.0,91047.0,0.01098333]
[1763650862170,0.21966194,91049.0,91030.0,0.0004]
[1763650862171,0.01098454,91037.0,91030.0,0.0004]
[1763650862386,0.01511,91031.0,91030.0,0.0004]
[1763650862588,0.03976,91031.0,91030.0,0.0004]
[1763650863040,0.03976,91031.0,90996.0,0.00378]
[1763650863041,0.0109884,91005.0,90989.0,0.01099033]
[1763650863245,0.01511,90999.0,90994.0,0.01098973]
[1763650863477,0.01511,90999.0,90998.0,0.21978505]
[1763650863903,0.01511,90999.0,90998.0,0.22249265]
[1763650864153,0.01539,91004.0,91003.0,0.21977297]
[1763650864386,0.01722756,91036.0,90998.0,0.2334819]
[1763650864387,0.02465,91027.0,91021.0,0.01098647]
[1763650864585,0.57502849,91040.0,91039.0,0.21968606]
[1763650864586,0.01163,91040.0,91039.0,0.21968606]
[1763650864785,0.01539,91040.0,91039.0,0.21968606]
[1763650865002,0.02284225,91056.0,91055.0,0.21964746]
[1763650865003,0.01186,91056.0,91055.0,0.21964746]
[1763650865206,0.01186,91056.0,91047.0,0.01098333]
[1763650865207,0.01562,91056.0,91047.0,0.01098333]
[1763650865413,0.01511,91054.0,91052.0,0.23063576]
[1763650865617,0.01163,91067.0,91066.0,0.21962093]
[1763650865821,0.01539,91067.0,91066.0,0.21962093]
[1763650866052,0.01098104,91066.0,91036.0,0.01076492]
[1763650866248,0.21969089,91037.0,91036.0,0.01076492]
[1763650866450,0.30666406,91037.0,91036.0,0.01076492]
[1763650866654,0.11162317,91037.0,91036.0,0.01076492]
[1763650866896,0.21969813,91034.0,91022.0,0.01098635]
[1763650867100,0.0109849,91034.0,91029.0,0.01098551]
[1763650867308,0.02465,91036.0,91029.0,0.01098551]
[1763650867309,0.03628,91036.0,91033.0,0.01098502]
[1763650867518,0.03628,91036.0,91034.0,0.21969779]
[1763650868148,0.00376,91035.0,91034.0,0.21969779]
[1763650868357,0.05450478,91035.0,91030.0,0.23069316]
[1763650868539,0.01098575,91027.0,91024.0,0.01098611]
[1763650868740,0.23069984,91028.0,91026.0,0.01644295]
[1763650868976,0.01098563,91028.0,91026.0,0.01644295]
[1763650869184,0.01098563,91028.0,91023.0,0.01098623]
[1763650869185,0.01511,91025.0,91023.0,0.2361675]
[1763650869765,0.01163,91024.0,91023.0,0.2361675]
[1763650870216,0.01163,91024.0,91021.0,0.23071576]
[1763650870217,0.01539,91024.0,91021.0,0.23071576]
[1763650870418,0.01098695,91017.0,90993.0,0.00376]
[1763650870635,0.01098695,91017.0,91012.0,0.01098756]
[1763650870839,0.02465,91017.0,91013.0,0.01098744]
[1763650871048,0.02465,91017.0,91014.0,0.01098732]
[1763650871264,0.02637611,91024.0,91014.0,0.01098732]
[1763650871265,0.00376,91024.0,91022.0,0.21972564]
[1763650871472,0.02746075,91039.0,91034.0,0.21969576]
[1763650871693,0.00376,91035.0,91033.0,0.23068323]
[1763650871871,0.01098309,91049.0,91035.0,0.21969572]
[1763650872138,0.01539,91036.0,91035.0,0.21969572]
[1763650872543,0.01539,91036.0,91034.0,0.21969607]
[1763650872751,0.01511,91034.0,91032.0,0.21970219]
[1763650872960,0.01098526,91031.0,91019.0,0.01098671]
[1763650873166,0.06750166,91036.0,91002.0,0.33944295]
[1763650873167,0.01098695,91017.0,91009.0,0.01098792]
[1763650873370,0.21975474,91011.0,91002.0,0.01644295]
[1763650873574,0.01098804,91008.0,90989.0,0.01644295]
[1763650873781,0.03628,91010.0,91004.0,0.01098852]
[1763650873986,0.03628,91010.0,91006.0,0.01098828]
[1763650874186,0.03628,91010.0,91007.0,0.23075017]
[1763650874393,0.01163,91010.0,91008.0,0.21975922]
[1763650874798,0.2197354,91019.0,91008.0,0.21975922]
[1763650874799,0.23136099,91021.0,91011.0,0.01098768]
[1763650875003,0.01098707,91016.0,91006.0,0.01644295]
[1763650875187,0.01098816,91007.0,91002.0,0.21977391]
[1763650875392,0.00376,91006.0,91005.0,0.01644295]
[1763650875779,0.00376,91006.0,91005.0,0.06637968]
[1763650876000,0.00376,91006.0,91005.0,0.01644295]
[1763650876201,0.00376,91006.0,91005.0,0.01894434]
[1763650876402,0.04352,91006.0,91005.0,0.00250139]
[1763650876835,0.00376,91006.0,91005.0,0.00250139]
[1763650877435,0.04352,91006.0,91005.0,0.00250139]
[1763650878257,0.01887,91006.0,91005.0,0.00250139]
[1763650878852,0.00376,91006.0,91005.0,0.00250139]
[1763650879640,0.04352,91006.0,91005.0,0.00250139]
[1763650879844,0.05515,91006.0,91005.0,0.00250139]
[1763650880375,0.10725249,91006.0,91005.0,0.00250139]
[1763650881681,0.10825249,91006.0,91005.0,0.00250139]
[1763650881881,0.10725249,91006.0,91005.0,0.00250139]
[1763650882091,0.01099178,90977.0,90971.0,0.01099251]
[1763650882295,0.32968908,90995.0,90971.0,0.01099251]
[1763650882296,0.00376,90976.0,90974.0,0.2198419]
[1763650882653,0.01098937,90997.0,90972.0,0.02743534]
[1763650882654,0.01511,90992.0,90991.0,0.01099009]
[1763650882885,0.01887,90992.0,90991.0,0.2307914]
[1763650883086,0.01887,90992.0,90987.0,0.21981162]
[1763650883087,0.01099021,90990.0,90981.0,0.0109913]
[1763650883287,0.01099118,90982.0,90972.0,0.01644295]
[1763650883513,0.01511,90979.0,90976.0,0.0109919]
[1763650883720,0.01511,90979.0,90977.0,0.21983433]
[1763650884073,0.00376,90981.0,90976.0,0.23082735]
[1763650884074,0.00376,90981.0,90980.0,0.21982853]
[1763650884272,0.01887,90981.0,90980.0,0.21982853]
[1763650884473,0.00376,90981.0,90980.0,0.21982853]
[1763650884674,0.03628,90991.0,90990.0,0.21980437]
[1763650884856,0.02465,91003.0,91000.0,0.01098901]
[1763650885060,0.01511,91001.0,91000.0,0.01098901]
[1763650885480,0.00376,91002.0,90992.0,0.21979932]
[1763650885737,0.01511,91000.0,90998.0,0.23077311]
[1763650885939,0.02688164,91003.0,90998.0,0.23077311]
[1763650885940,0.00376,91001.0,91000.0,0.21978021]
[1763650886269,0.00376,91001.0,90999.0,0.21978263]
[1763650886473,0.01511,91000.0,90994.0,0.21979438]
[1763650886674,0.21979972,90992.0,90982.0,0.01099118]
[1763650886927,0.02841,91001.0,90996.0,0.01098949]
[1763650886928,0.02465,90999.0,90996.0,0.01098949]
[1763650887082,0.02914843,91001.0,90997.0,0.01098937]
[1763650887300,0.01511,90997.0,90996.0,0.01098949]
[1763650887604,0.01511,90997.0,90995.0,0.21979228]
[1763650887807,0.02465,91000.0,90991.0,0.01099009]
[1763650887808,0.03976,90996.0,90991.0,0.21979961]
[1763650888008,0.01511,90995.0,90991.0,0.01099009]
[1763650888207,0.03976,90995.0,90990.0,0.01644295]
[1763650888409,0.03976,90995.0,90975.0,0.01099203]
[1763650888410,0.01099021,90990.0,90975.0,0.01099203]
[1763650888615,0.2198113,90988.0,90987.0,0.01644295]
[1763650888814,0.21981162,90987.0,90978.0,0.01099166]
[1763650889014,0.21982502,90982.0,90979.0,0.01099154]
[1763650889352,0.01511,90984.0,90981.0,0.0109913]
[1763650889663,0.2198237,90982.0,90978.0,0.22481587]
[1763650889817,0.01566,90980.0,90975.0,0.01099203]
[1763650890024,0.23548982,90980.0,90976.0,0.0109919]
[1763650890187,0.23548982,90980.0,90969.0,0.01099275]
[1763650890188,0.01566,90973.0,90969.0,0.01099275]
[1763650890379,0.01566,90973.0,90966.0,0.01099311]
[1763650890380,0.01157,90970.0,90966.0,0.01099311]
[1763650890593,0.01566,90967.0,90964.0,0.23085795]
[1763650890789,0.01566,90967.0,90966.0,0.21986236]
[1763650890998,0.01157,90970.0,90969.0,0.21985511]
[1763650891622,0.00376,90974.0,90973.0,0.21984544]
[1763650891831,0.00376,90974.0,90973.0,0.23628839]
[1763650892063,0.03846575,90990.0,90973.0,0.23628839]
[1763650892064,0.02747554,90990.0,90987.0,0.21981036]
[1763650892273,0.01099094,90984.0,90972.0,0.01099239]
[1763650892483,0.21982693,90981.0,90977.0,0.01099178]
[1763650892692,0.21982927,90980.0,90974.0,0.21984284]
[1763650892917,0.01578,90974.0,90972.0,0.02743534]
[1763650893129,0.00376,90975.0,90973.0,0.21984544]
[1763650893595,0.0528,90974.0,90973.0,0.21984544]
[1763650894001,0.0528,90974.0,90973.0,0.22078791]
[1763650894425,0.01245,90974.0,90973.0,0.22078791]
[1763650895488,0.02823,90974.0,90973.0,0.00094247]
[1763650895698,0.0528,90974.0,90973.0,0.00094247]
[1763650896322,0.13584013,90974.0,90973.0,0.00094247]
[1763650896986,0.07667249,90973.0,90968.0,0.01099287]
[1763650897194,0.01099299,90967.0,90964.0,0.01099336]
[1763650897403,0.01578,90965.0,90964.0,0.23086032]
[1763650897608,0.01099396,90959.0,90952.0,0.21989509]
[1763650897816,0.02823,90953.0,90952.0,0.01099481]
[1763650898250,0.01245,90953.0,90952.0,0.01099481]
[1763650898456,0.00376,90958.0,90957.0,0.21988412]
[1763650898677,0.04411,90958.0,90957.0,0.21988412]
[1763650898881,0.01954,90958.0,90957.0,0.21988412]
[1763650900226,0.00376,90958.0,90957.0,0.21988412]
[1763650900424,0.05210249,90976.0,90971.0,0.01099251]
[1763650900715,0.00376,90973.0,90972.0,0.21984631]
[1763650900885,0.02833,90973.0,90964.0,0.01099336]
[1763650901109,0.01099058,90987.0,90964.0,0.01099336]
[1763650901110,0.02457,90980.0,90973.0,0.21984544]
[1763650901338,0.01621,90974.0,90973.0,0.21984544]
[1763650901813,0.01621,90974.0,90970.0,0.01099263]
[1763650901814,0.03199,90974.0,90970.0,0.01099263]
[1763650902026,0.02468511,90973.0,90972.0,0.21984597]